fUST/lending_fUST_20240603
["ID","MTS","AMOUNT","RATE_DAILY","PERIOD"]
[328456491,1717413046630,-500.0,0.00019178,2]
[328456492,1717413046639,-502.49262441,0.00019178,2]
[328456493,1717413046648,-500.0,0.00019178,2]
[328456494,1717413046657,-500.0,0.00019178,2]
[328456495,1717413046665,-500.0,0.00019178,2]
[328456496,1717413046674,-536.43776564,0.00019178,2]
[328456497,1717413046683,-500.0,0.00019178,2]
[328456498,1717413046692,-500.0,0.00019178,2]
[328456499,1717413046701,-500.0,0.00019178,2]
[328456500,1717413046711,-500.0,0.00019178,2]
[328456501,1717413046720,-500.0,0.00019178,2]
[328456502,1717413046729,-500.0,0.00019178,2]
[328456503,1717413046739,-500.0,0.00019178,2]
[328456504,1717413046748,-500.0,0.00019178,2]
[328456505,1717413046757,-548.43,0.00019178,2]
[328456506,1717413046766,-500.0,0.00019178,2]
[328456507,1717413046777,-500.0,0.00019178,2]
[328456508,1717413046787,-500.0,0.00019178,2]
[328456509,1717413046796,-500.0,0.00019178,2]
[328456510,1717413046805,-599.47,0.00019178,2]
[328456511,1717413046815,-500.0,0.00019178,2]
[328456512,1717413046824,-500.0,0.00019178,2]
[328456513,1717413046834,-500.0,0.00019178,2]
[328456514,1717413046843,-500.0,0.00019178,2]
[328456515,1717413046853,-551.99,0.00019178,2]
[328456516,1717413046861,-500.0,0.00019178,2]
[328456517,1717413046870,-312.80389994,0.00019178,2]
[328456518,1717413046879,-500.0,0.00019178,2]
[328456519,1717413046889,-500.0,0.00019178,2]
[328456520,1717413046898,-500.0,0.00019178,2]
[328456521,1717413046906,-500.0,0.00019178,2]
[328456522,1717413046915,-521.87678603,0.00019178,2]
[328456523,1717413046925,-500.0,0.00019178,2]
[328456524,1717413046934,-350.57816301,0.00019178,2]
[328456525,1717413046943,-512.14045453,0.00019178,2]
[328456526,1717413046952,-501.27053568,0.00019178,2]
[328456527,1717413046963,-169.644612,0.00019178,2]
[328456528,1717413046972,-456.73,0.00019452,2]
[328456529,1717413046981,-500.0,0.00019452,2]
[328456530,1717413046990,-500.0,0.00019452,2]
[328456531,1717413046999,-500.0,0.00019452,2]
[328456532,1717413047008,-500.0,0.00019452,2]
[328456533,1717413047017,-200.07,0.00019452,2]
[328456534,1717413047026,-279.59,0.00019452,2]
[328456535,1717413047036,-500.0,0.00019452,2]
[328456536,1717413047045,-179.15,0.00019452,2]
[328456537,1717413047054,-592.86,0.00019452,2]
[328456538,1717413047063,-218.34,0.00019452,2]
[328456539,1717413047072,-243.33,0.00019452,2]
[328456540,1717413047082,-500.0,0.00019452,2]
[328456541,1717413047091,-500.0,0.00019452,2]
[328456542,1717413047100,-226.58,0.00019452,2]
[328456543,1717413047109,-500.0,0.00019452,2]
[328456544,1717413047118,-396.78,0.00019452,2]
[328456545,1717413047127,-217.46,0.00019452,2]
[328456546,1717413047136,-233.22,0.00019452,2]
[328456547,1717413047145,-500.0,0.00019452,2]
[328456548,1717413047154,-500.0,0.00019452,2]
[328456549,1717413047164,-500.0,0.00019452,2]
[328456550,1717413047173,-510.76,0.00019452,2]
[328456551,1717413047182,-207.96,0.00019452,2]
[328456552,1717413047190,-500.0,0.00019452,2]
[328456553,1717413047199,-500.0,0.00019452,2]
[328456554,1717413047209,-187.76,0.00019452,2]
[328456555,1717413047218,-500.0,0.00019452,2]
[328456556,1717413047227,-427.85,0.00019452,2]
[328456557,1717413047236,-449.40005789,0.00019452,2]
[328456558,1717413047244,-160.12,0.00019452,2]
[328456559,1717413047253,-193.01,0.00019452,2]
[328456560,1717413047262,-500.0,0.00019452,2]
[328456561,1717413047271,-500.0,0.00019452,2]
[328456562,1717413047280,-500.0,0.00019452,2]
[328456563,1717413047289,-158.74,0.00019452,2]
[328456564,1717413047298,-204.96,0.00019452,2]
[328456565,1717413047307,-500.0,0.00019452,2]
[328456566,1717413047317,-218.26,0.00019452,2]
[328456567,1717413047326,-500.0,0.00019452,2]
[328456568,1717413047336,-500.0,0.00019452,2]
[328456569,1717413047345,-424.13,0.00019452,2]
[328456570,1717413047354,-500.0,0.00019452,2]
[328456571,1717413047363,-197.05,0.00019452,2]
[328456572,1717413047372,-503.00259491,0.00019616,2]
[328456573,1717413047381,-500.0,0.00019627,2]
[328456574,1717413047390,-500.0,0.00019627,2]
[328456575,1717413047404,-500.0,0.00019627,2]
[328456576,1717413047413,-562.4,0.00019627,2]
[328456577,1717413047422,-500.0,0.00019627,2]
[328456578,1717413047431,-500.0,0.00019627,2]
[328456579,1717413047440,-507.003997,0.00019627,2]
[328456580,1717413047449,-500.0,0.00019627,2]
[328456581,1717413047466,-500.0,0.00019627,2]
[328456582,1717413047481,-500.0,0.00019627,2]
[328456583,1717413047491,-500.0,0.00019627,2]
[328456584,1717413047500,-500.0,0.00019627,2]
[328456585,1717413047510,-500.0,0.00019627,2]
[328456586,1717413047519,-500.0,0.00019627,2]
[328456587,1717413047529,-500.0,0.00019627,2]
[328456588,1717413047538,-243.31497521,0.00019627,2]
[328456589,1717413047548,-507.49852543,0.00019627,2]
[328456590,1717413047557,-500.0,0.00019627,2]
[328456591,1717413047567,-500.0,0.00019627,2]
[328456592,1717413047576,-500.0,0.00019627,2]
[328456593,1717413047586,-500.0,0.00019627,2]
[328456594,1717413047595,-250.00358621,0.00019627,2]
[328456595,1717413047604,-390.37867143,0.00019627,2]
[328456596,1717413047613,-500.0,0.00019627,2]
[328456597,1717413047623,-500.0,0.00019627,2]
[328456598,1717413047632,-500.0,0.00019627,2]
[328456599,1717413047641,-500.0,0.00019627,2]
[328456600,1717413047651,-502.59911156,0.00019627,2]
[328456601,1717413047660,-500.0,0.00019627,2]
[328456602,1717413047669,-500.0,0.00019627,2]
[328456603,1717413047678,-500.0,0.00019627,2]
[328456604,1717413047688,-500.0,0.00019627,2]
[328456605,1717413047697,-500.0,0.00019627,2]
[328456606,1717413047707,-500.0,0.00019627,2]
[328456607,1717413047716,-499.62024715,0.00019627,2]
[328456608,1717413047725,-500.0,0.00019627,2]
[328456609,1717413047734,-550.42,0.00019627,2]
[328456610,1717413047744,-500.0,0.00019627,2]
[328456611,1717413047753,-500.0,0.00019627,2]
[328456612,1717413047763,-500.0,0.00019627,2]
[328456613,1717413047772,-644.62700583,0.00019627,2]
[328456614,1717413047781,-500.0,0.00019627,2]
[328456615,1717413047791,-500.0,0.00019627,2]
[328456616,1717413047800,-500.0,0.00019627,2]
[328456617,1717413047808,-500.0,0.00019627,2]
[328456618,1717413047817,-500.0,0.00019627,2]
[328456619,1717413047826,-500.0,0.00019627,2]
[328456620,1717413047835,-500.0,0.00019627,2]
[328456621,1717413047845,-1000.0,0.00019627,2]
[328456622,1717413047854,-500.0,0.00019627,2]
[328456623,1717413047863,-500.0,0.00019627,2]
[328456624,1717413047872,-412.14384488,0.00019627,2]
[328456625,1717413047881,-549.05870408,0.00019627,2]
[328456626,1717413047890,-500.0,0.00019627,2]
[328456627,1717413047899,-500.0,0.00019627,2]
[328456628,1717413047908,-500.0,0.00019627,2]
[328456629,1717413047918,-446.02,0.00019726,2]
[328456630,1717413047927,-438.04514621,0.00019726,2]
[328456631,1717413047936,-500.0,0.00019726,2]
[328456632,1717413047945,-500.0,0.00019726,2]
[328456633,1717413047954,-554.3,0.00019726,2]
[328456634,1717413047964,-500.0,0.00019726,2]
[328456635,1717413047974,-500.0,0.00019726,2]
[328456636,1717413047983,-500.0,0.00019726,2]
[328456637,1717413047993,-500.0,0.00019726,2]
[328456638,1717413048003,-500.0,0.00019726,2]
[328456639,1717413048012,-428.26,0.00019726,2]
[328456640,1717413048021,-267.13,0.00019726,2]
[328456641,1717413048030,-213.97,0.00019726,2]
[328456642,1717413048040,-500.0,0.00019726,2]
[328456643,1717413048049,-212.11,0.00019726,2]
[328456644,1717413048058,-449.22,0.00019726,2]
[328456645,1717413048067,-500.0,0.00019726,2]
[328456646,1717413048076,-500.0,0.00019726,2]
[328456647,1717413048086,-500.0,0.00019726,2]
[328456648,1717413048095,-500.0,0.00019726,2]
[328456649,1717413048105,-500.0,0.00019726,2]
[328456650,1717413048114,-240.74,0.00019901,2]
[328456651,1717413048123,-500.0,0.00019901,2]
[328456652,1717413048132,-500.0,0.00019901,2]
[328456653,1717413048141,-153.1,0.00019901,2]
[328456654,1717413048151,-273.28,0.00019901,2]
[328456655,1717413048160,-155.7,0.00019901,2]
[328456656,1717413048170,-161.82,0.00019901,2]
[328456657,1717413048179,-500.0,0.0002,2]
[328456658,1717413048189,-280.72,0.0002,2]
[328456659,1717413048207,-555.35,0.0002,2]
[328456660,1717413048239,-500.0,0.0002,2]
[328456661,1717413048271,-500.0,0.0002,2]
[328456662,1717413048300,-192.94627711,0.0002,2]
[328456663,1717413048331,-184.0,0.0002,2]
[328456664,1717413048364,-500.0,0.0002,2]
[328456665,1717413048397,-500.0,0.0002,2]
[328456666,1717413048418,-226.02,0.0002,2]
[328456667,1717413048438,-343.61,0.0002,2]
[328456668,1717413048448,-500.0,0.0002,2]
[328456669,1717413048459,-453.87,0.0002,2]
[328456670,1717413048471,-348.37,0.00020175,2]
[328456671,1717413048480,-369.13,0.00020175,2]
[328456672,1717413048490,-206.57,0.00020273,2]
[328456673,1717413048500,-500.0,0.00020273,2]
[328456674,1717413048510,-383.66,0.00020273,2]
[328456675,1717413048520,-500.0,0.00020273,2]
[328456676,1717413048529,-500.0,0.00020273,2]
[328456677,1717413048539,-500.0,0.00020273,2]
[328456678,1717413048549,-500.0,0.00020547,2]
[328456679,1717413048559,-3000.0,0.00020547,2]
[328456680,1717413048568,-3000.0,0.00020547,2]
[328456681,1717413048579,-1719.65675883,0.00020547,2]
[328456682,1717413048588,-500.0,0.00020547,2]
[328456683,1717413048597,-500.0,0.00020547,2]
[328456684,1717413048607,-500.0,0.00020547,2]
[328456685,1717413048617,-155.07,0.00020821,2]
[328456686,1717413048627,-500.0,0.00020821,2]
[328456687,1717413048636,-621.09,0.00020821,2]
[328456688,1717413048646,-500.0,0.00020821,2]
[328456689,1717413048656,-500.0,0.00020881,2]
[328456690,1717413048666,-500.0,0.00020881,2]
[328456691,1717413048676,-645.21876079,0.00020881,2]
[328456692,1717413048685,-500.0,0.00020881,2]
[328456693,1717413048695,-513.76237331,0.00020881,2]
[328456694,1717413048704,-500.0,0.00020881,2]
[328456695,1717413048715,-158.96697756,0.00020881,2]
[328456696,1717413048724,-158.25,0.00021095,2]
[328456697,1717413048734,-500.0,0.00021095,2]
[328456698,1717413048744,-503.00259491,0.00021164,2]
[328456699,1717413048754,-500.0,0.00021369,2]
[328456700,1717413048764,-500.0,0.00021643,2]
[328456701,1717413048774,-500.0,0.00021917,2]
[328456702,1717413048784,-500.0,0.00022191,2]
[328456703,1717413048794,-500.0,0.00022465,2]
[328456704,1717413048803,-503.00259491,0.00022711,2]
[328456705,1717413048813,-500.0,0.00022739,2]
[328456706,1717413048823,-271.49766023,0.00023013,2]
[328456707,1717413048833,-497.0,0.00023126,2]
[328456708,1717413048843,-150.0,0.00023126,2]
[328456709,1717413048852,-150.0,0.000239,2]
[328456710,1717413048862,-503.00259491,0.00024258,2]
[328456711,1717413048871,-503.00259491,0.00025805,2]
[328456712,1717413048881,-296.13365825,0.00026,2]
[328456713,1717413048890,-166.666666,0.00026,2]
[328456714,1717413048900,-150.0,0.000265,2]
[328456715,1717413048910,-1773.87,0.000266,3]
[328456716,1717413048919,-1773.87,0.000266,3]
[328456717,1717413048928,-1773.87,0.000266,3]
[328456718,1717413048938,-1773.87,0.000266,3]
[328456719,1717413048947,-1773.87,0.000266,3]
[328456720,1717413048958,-1773.87,0.000266,3]
[328456721,1717413048967,-1773.87,0.000266,3]
[328456722,1717413048977,-1773.87,0.000266,3]
[328456723,1717413048986,-1773.87,0.000266,3]
[328456724,1717413048995,-1773.87,0.000266,3]
[328456725,1717413049004,-1773.87,0.000266,3]
[328456726,1717413049014,-1773.87,0.000266,3]
[328456727,1717413049024,-1773.87,0.000266,3]
[328456728,1717413049033,-1773.87,0.000266,3]
[328456729,1717413049043,-1773.87,0.000266,3]
[328456730,1717413049052,-1773.87,0.000266,3]
[328456731,1717413049062,-1773.87,0.000266,3]
[328456732,1717413049071,-1773.87,0.000266,3]
[328456733,1717413049080,-1773.87,0.000266,3]
[328456734,1717413049090,-1773.87,0.000266,3]
[328456735,1717413049100,-750.0,0.00026849,2]
[328456736,1717413049110,-160.25575118,0.00027008,2]
[328456737,1717413049120,-166.58465821,0.00027033,2]
[328456738,1717413049129,-995.30840592,0.00027094,2]
[328456739,1717413049139,-1013.87230715,0.00027123,2]
[328456740,1717413049148,-88888.0,0.00027135,3]
[328456741,1717413049158,-1013.87230715,0.00027161,2]
[328456742,1717413049167,-166.58465821,0.00027165,2]
[328456743,1717413049177,-153.74860022,0.00027179,2]
[328456744,1717413049186,-160.0,0.000272,2]
[328456745,1717413049196,-270.0,0.000272,2]
[328456746,1717413049205,-540.0,0.000272,2]
[328456747,1717413049216,-648.0,0.000272,2]
[328456748,1717413049225,-1618.0,0.000272,2]
[328456749,1717413049234,-1830.18626354,0.00027209,2]
[328456750,1717413049245,-212.71800123,0.00027211,2]
[328456751,1717413049254,-1013.87230715,0.00027233,2]
[328456752,1717413049264,-457.17016607,0.00027235,2]
[328456753,1717413049273,-12839.75194096,0.00027235,2]
[328456754,1717413049283,-762.0201281,0.00027235,2]
[328456755,1717413049293,-461.8019537,0.00027235,2]
[328456756,1717413049303,-3987.57363517,0.00027235,2]
[328456757,1717413049312,-161.01767511,0.00027235,2]
[328456758,1717413049322,-155.37154821,0.00027235,2]
[328456759,1717413049332,-166.58465821,0.00027238,2]
[328456760,1717413049342,-1830.18626354,0.00027284,2]
[328456761,1717413049351,-1830.18626354,0.00027286,2]
[328456762,1717413049360,-1830.18626354,0.00027346,2]
[328456763,1717413049370,-1013.87230715,0.0002735,2]
[328456764,1717413049380,-503.00259491,0.00027353,2]
[328456765,1717413049390,-500.0,0.00027397,30]
[328456766,1717413049404,-524.00587519,0.00027397,30]
[328456767,1717413049413,-500.0,0.00027397,2]
[328456768,1717413049422,-500.0,0.00027397,2]
[328456769,1717413049432,-500.0,0.00027397,2]
[328456770,1717413049443,-500.0,0.00027397,2]
[328456771,1717413049452,-500.0,0.00027397,2]
[328456772,1717413049463,-500.0,0.00027397,2]
[328456773,1717413049474,-500.0,0.00027397,2]
[328456774,1717413049484,-500.0,0.00027397,2]
[328456775,1717413049494,-500.0,0.00027397,2]
[328456776,1717413049503,-500.0,0.00027397,2]
[328456777,1717413049513,-500.0,0.00027397,2]
[328456778,1717413049522,-500.0,0.00027397,2]
[328456779,1717413049531,-500.0,0.00027397,2]
[328456780,1717413049540,-500.0,0.00027397,2]
[328456781,1717413049549,-500.0,0.00027397,2]
[328456782,1717413049559,-500.0,0.00027397,2]
[328456783,1717413049568,-500.0,0.00027397,2]
[328456784,1717413049576,-500.0,0.00027397,2]
[328456785,1717413049586,-500.0,0.00027397,2]
[328456787,1717413049595,-500.0,0.00027397,2]
[328456789,1717413049603,-500.0,0.00027397,2]
[328456791,1717413049612,-500.0,0.00027397,2]
[328456792,1717413049621,-500.0,0.00027397,2]
[328456794,1717413049630,-500.0,0.00027397,2]
[328456796,1717413049639,-500.0,0.00027397,2]
[328456798,1717413049649,-500.0,0.00027397,2]
[328456801,1717413049658,-500.0,0.00027397,2]
[328456803,1717413049667,-500.0,0.00027397,2]
[328456804,1717413049676,-500.0,0.00027397,2]
[328456805,1717413049685,-500.0,0.00027397,2]
[328456806,1717413049694,-500.0,0.00027397,2]
[328456807,1717413049703,-500.0,0.00027397,2]
[328456808,1717413049713,-500.0,0.00027397,2]
[328456809,1717413049722,-500.0,0.00027397,2]
[328456810,1717413049731,-500.0,0.00027397,2]
[328456811,1717413049739,-500.0,0.00027397,2]
[328456815,1717413049948,-500.0,0.00027397,2]
[328456816,1717413049958,-500.0,0.00027397,2]
[328456817,1717413049967,-500.0,0.00027397,2]
[328456818,1717413049977,-500.0,0.00027397,2]
[328456819,1717413049987,-500.0,0.00027397,2]
[328456820,1717413049997,-500.0,0.00027397,2]
[328456821,1717413050006,-500.0,0.00027397,2]
[328456822,1717413050015,-500.0,0.00027397,2]
[328456823,1717413050025,-500.0,0.00027397,2]
[328456824,1717413050034,-500.0,0.00027397,2]
[328456825,1717413050044,-500.0,0.00027397,2]
[328456826,1717413050053,-500.0,0.00027397,2]
[328456827,1717413050063,-500.0,0.00027397,2]
[328456828,1717413050072,-500.0,0.00027397,2]
[328456829,1717413050081,-500.0,0.00027397,2]
[328456830,1717413050090,-500.0,0.00027397,2]
[328456831,1717413050100,-500.0,0.00027397,2]
[328456832,1717413050109,-500.0,0.00027397,2]
[328456833,1717413050118,-500.0,0.00027397,2]
[328456834,1717413050128,-500.0,0.00027397,2]
[328456835,1717413050137,-500.0,0.00027397,2]
[328456836,1717413050146,-500.0,0.00027397,2]
[328456837,1717413050156,-500.0,0.00027397,2]
[328456838,1717413050166,-500.0,0.00027397,2]
[328456839,1717413050176,-500.0,0.00027397,2]
[328456840,1717413050185,-500.0,0.00027397,2]
[328456841,1717413050194,-500.0,0.00027397,2]
[328456842,1717413050203,-472.23526909,0.00027397,2]
[328456843,1717413050214,-500.0,0.00027397,2]
[328456844,1717413050223,-500.0,0.00027397,2]
[328456845,1717413050232,-500.0,0.00027397,2]
[328456846,1717413050242,-500.0,0.00027397,2]
[328456847,1717413050251,-500.0,0.00027397,2]
[328456848,1717413050260,-500.0,0.00027397,2]
[328456849,1717413050269,-500.0,0.00027397,2]
[328456850,1717413050279,-500.0,0.00027397,2]
[328456851,1717413050289,-500.0,0.00027397,2]
[328456852,1717413050299,-500.0,0.00027397,2]
[328456853,1717413050308,-500.0,0.00027397,2]
[328456854,1717413050317,-500.0,0.00027397,2]
[328456855,1717413050326,-500.0,0.00027397,2]
[328456856,1717413050335,-500.0,0.00027397,2]
[328456857,1717413050344,-500.0,0.00027397,2]
[328456858,1717413050353,-500.0,0.00027397,2]
[328456859,1717413050362,-500.0,0.00027397,2]
[328456860,1717413050371,-500.0,0.00027397,2]
[328456861,1717413050381,-500.0,0.00027397,2]
[328456862,1717413050390,-500.0,0.00027397,2]
[328456863,1717413050403,-500.0,0.00027397,2]
[328456864,1717413050412,-500.0,0.00027397,2]
[328456865,1717413050421,-500.0,0.00027397,2]
[328456866,1717413050430,-500.0,0.00027397,2]
[328456867,1717413050439,-500.0,0.00027397,2]
[328456868,1717413050449,-500.0,0.00027397,2]
[328456869,1717413050459,-500.0,0.00027397,2]
[328456870,1717413050468,-500.0,0.00027397,2]
[328456871,1717413050480,-500.0,0.00027397,2]
[328456872,1717413050491,-500.0,0.00027397,2]
[328456873,1717413050500,-500.0,0.00027397,2]
[328456874,1717413050510,-500.0,0.00027397,2]
[328456875,1717413050519,-500.0,0.00027397,2]
[328456876,1717413050529,-500.0,0.00027397,2]
[328456877,1717413050538,-500.0,0.00027397,2]
[328456878,1717413050547,-500.0,0.00027397,2]
[328456879,1717413050556,-500.0,0.00027397,2]
[328456880,1717413050566,-500.0,0.00027397,2]
[328456881,1717413050576,-500.0,0.00027397,2]
[328456882,1717413050585,-500.0,0.00027397,2]
[328456883,1717413050594,-500.0,0.00027397,2]
[328456884,1717413050604,-500.0,0.00027397,2]
[328456885,1717413050614,-500.0,0.00027397,2]
[328456886,1717413050623,-500.0,0.00027397,2]
[328456887,1717413050632,-500.0,0.00027397,2]
[328456888,1717413050641,-505.03143164,0.00027397,15]
[328456889,1717413050651,-500.0,0.00027397,2]
[328456890,1717413050661,-500.0,0.00027397,2]
[328456891,1717413050671,-500.0,0.00027397,2]
[328456892,1717413050680,-500.0,0.00027397,2]
[328456893,1717413050689,-500.0,0.00027397,2]
[328456894,1717413050698,-500.0,0.00027397,2]
[328456895,1717413050707,-500.0,0.00027397,2]
[328456896,1717413050717,-500.0,0.00027397,2]
[328456897,1717413050726,-500.0,0.00027397,2]
[328456898,1717413050735,-500.0,0.00027397,2]
[328456899,1717413050746,-500.0,0.00027397,2]
[328456900,1717413050755,-500.0,0.00027397,2]
[328456901,1717413050765,-500.0,0.00027397,2]
[328456902,1717413050774,-361.84130408,0.00027397,2]
[328456903,1717413050783,-500.0,0.00027397,2]
[328456904,1717413050793,-500.0,0.00027397,2]
[328456905,1717413050803,-500.0,0.00027397,2]
[328456906,1717413050812,-500.0,0.00027397,2]
[328456907,1717413050822,-500.0,0.00027397,2]
[328456908,1717413050831,-376.87492389,0.00027397,2]
[328456909,1717413050840,-500.0,0.00027397,2]
[328456910,1717413050850,-500.0,0.00027397,2]
[328456911,1717413050859,-500.0,0.00027397,2]
[328456912,1717413050869,-637.68749239,0.00027397,2]
[328456913,1717413050879,-500.0,0.00027397,2]
[328456914,1717413050888,-500.0,0.00027397,2]
[328456915,1717413050898,-500.0,0.00027397,2]
[328456916,1717413050908,-500.0,0.00027397,2]
[328456917,1717413050918,-500.0,0.00027397,2]
[328456918,1717413050928,-500.0,0.00027397,2]
[328456919,1717413050937,-500.0,0.00027397,2]
[328456920,1717413050947,-500.0,0.00027397,2]
[328456921,1717413050956,-153.74860022,0.00027402,2]
[328456922,1717413050966,-1830.18626354,0.00027409,2]
[328456923,1717413050975,-1013.87230715,0.00027432,2]
[328456924,1717413050985,-1013.87230715,0.00027439,2]
[328456925,1717413050994,-166.58465821,0.00027465,2]
[328456926,1717413051003,-302.0,0.00027499,2]
[328456927,1717413051013,-205.88674814,0.00027499,10]
[328456928,1717413051022,-43536.37923228,0.000275,2]
[328456929,1717413051031,-151.0,0.00027528,7]
[328456930,1717413051041,-151.0,0.00027528,7]
[328456931,1717413051051,-166.58465821,0.00027534,2]
[328456932,1717413051060,-166.58465821,0.00027549,2]
[328456933,1717413051069,-1830.18626354,0.00027557,2]
[328456934,1717413051079,-1830.18626354,0.00027565,2]
[328456935,1717413051089,-1013.87230715,0.00027573,2]
[328456936,1717413051098,-1773.87,0.000276,3]
[328456937,1717413051108,-1773.87,0.000276,3]
[328456938,1717413051117,-1773.87,0.000276,3]
[328456939,1717413051127,-1773.87,0.000276,3]
[328456940,1717413051136,-1773.87,0.000276,3]
[328456941,1717413051145,-1773.87,0.000276,3]
[328456942,1717413051154,-1773.87,0.000276,3]
[328456943,1717413051164,-1773.87,0.000276,3]
[328456944,1717413051173,-1773.87,0.000276,3]
[328456945,1717413051182,-1773.87,0.000276,3]
[328456946,1717413051191,-1773.87,0.000276,3]
[328456947,1717413051202,-1773.87,0.000276,3]
[328456948,1717413051212,-1773.87,0.000276,3]
[328456949,1717413051221,-1773.87,0.000276,3]
[328456950,1717413051230,-1773.87,0.000276,3]
[328456951,1717413051239,-1773.87,0.000276,3]
[328456952,1717413051248,-1773.87,0.000276,3]
[328456953,1717413051257,-1773.87,0.000276,3]
[328456954,1717413051266,-1773.87,0.000276,3]
[328456955,1717413051275,-1773.87,0.000276,3]
[328456956,1717413051284,-166.58465821,0.00027622,2]
[328456957,1717413051294,-1013.87230715,0.00027659,2]
[328456958,1717413051303,-184.8075197,0.00027671,2]
[328456959,1717413051312,-150.95471359,0.00027677,2]
[328456960,1717413051322,-305.0,0.000277,2]
[328456961,1717413051331,-166.58465821,0.00027725,2]
[328456962,1717413051340,-160.25575118,0.0002775,2]
[328456963,1717413051350,-1830.18626354,0.00027759,2]
[328456964,1717413051359,-1013.87230715,0.00027855,2]
[328456965,1717413051369,-166.58465821,0.00027857,2]
[328456966,1717413051379,-153.74860022,0.00027898,2]
[328456967,1717413051389,-724.29253978,0.000279,2]
[328456968,1717413051402,-166.58465821,0.00027939,2]
[328456969,1717413051412,-166.58465821,0.00027949,2]
[328456970,1717413051421,-166.58465821,0.00027957,2]
[328456971,1717413051431,-153.74860022,0.00027982,2]
[328456972,1717413051441,-29033.6880627,0.0002799,2]
[328456973,1717413051451,-5740.68760194,0.0002799,2]
[328456974,1717413051462,-166.58465821,0.00027991,2]
[328456975,1717413051471,-21877.37874829,0.00028,2]
[328456976,1717413051483,-154.9690062,0.00028,2]
[328456977,1717413051492,-321.91649644,0.00028,2]
[328456978,1717413051502,-259.17535199,0.00028,5]
[328456979,1717413051512,-876.65177624,0.00028,2]
[328456980,1717413051521,-154.95351395,0.00028,2]
[328456981,1717413051530,-652.25756711,0.00028,2]
[328456982,1717413051540,-1013.87230715,0.00028019,2]
[328456983,1717413051549,-151.0,0.00028105,7]
[328456984,1717413051558,-151.0,0.00028105,7]
[328456985,1717413051569,-166.58465821,0.00028119,2]
[328456986,1717413051579,-58405.1101,0.00028121,30]
[328456987,1717413051588,-166.58465821,0.00028123,2]
[328456988,1717413051598,-1830.18626354,0.00028131,2]
[328456989,1717413051607,-166.58465821,0.00028137,2]
[328456990,1717413051617,-301.90942717,0.00028142,4]
[328456991,1717413051627,-1013.87230715,0.00028147,2]
[328456992,1717413051636,-1830.18626354,0.00028156,2]
[328456993,1717413051645,-1013.87230715,0.00028178,2]
[328456994,1717413051655,-155.07161278,0.00028228,3]
[328456995,1717413051664,-1013.87230715,0.00028248,2]
[328456996,1717413051674,-1013.87230715,0.00028285,2]
[328456997,1717413051683,-166.58465821,0.00028302,2]
[328456998,1717413051693,-1013.87230715,0.00028331,2]
[328456999,1717413051703,-2594.89,0.00028398,6]
[328457000,1717413051713,-2020.38,0.00028398,6]
[328457001,1717413051722,-1013.87230715,0.00028403,2]
[328457002,1717413051732,-1013.87230715,0.00028407,2]